{"text_format":"1","workbook":"xlsx","n_sheets":1,"sheets":["SOL_ABASTECIMIENTO"],"not_rendered":{"charts":0,"images":2,"macros":1,"external_links":0,"defined_names":1,"comments":1,"pivot_tables":0},"unopened":[],"bounds":{"document_bytes":16777216,"sheet_cells":100000,"rows_first":2000,"rows_last":500,"rows_between":2000,"halvings":0,"cell_chars":16384,"cell_head_chars":4096},"cells_cut":0,"cells_raw":0,"read":"whole","date_system":"1900"}

{"sheet":"SOL_ABASTECIMIENTO","index":0,"n_rows":64,"n_cols":8,"rows_kept":64,"cut":false,"hidden":false,"merged":[[0,0,0,7],[57,5,57,7],[58,2,63,2],[58,5,63,5],[59,0,61,1],[60,3,61,4],[59,6,61,7],[58,3,58,4],[56,5,56,6],[1,1,1,7],[63,3,63,4],[63,6,63,7],[62,3,62,4],[6,5,6,6],[62,0,62,1],[58,0,58,1],[58,6,58,7],[62,6,62,7],[59,3,59,4],[2,1,2,7],[3,0,3,7],[4,0,4,7],[8,5,8,6],[56,0,57,4],[5,0,9,4]]}
[]
[null,"UNIVERSIDAD NACIONAL AUTÓNOMA DE MÉXICO"]
[null,"SECRETARÍAS Y UNIDADES ADMINISTRATIVAS"]
["BIENES Y SUMINISTROS"]
["SOLICITUD DE ABASTECIMIENTO"]
[]
[null,null,null,null,null,"FOLIO:"]
[]
[null,null,null,null,null,"FECHA DE SOLICITUD:"]
[]
["No.","CÓDIGO","DESCRIPCIÓN DEL BIEN O MATERIAL","UNIDAD","EXISTENCIA","CANTIDAD  SOLICITADA","COSTO UNITARIO","COSTO  TOTAL"]
[null,null,null,null,null,null,null,{"$f":"+F12*G12","v":0}]
[null,null,null,null,null,null,null,{"$f":"+F13*G13","v":0}]
[null,null,null,null,null,null,null,0]
[null,null,null,null,null,null,null,0]
[null,null,null,null,null,null,null,0]
[null,null,null,null,null,null,null,0]
[null,null,null,null,null,null,null,0]
[null,null,null,null,null,null,null,0]
[null,null,null,null,null,null,null,0]
[null,null,null,null,null,null,null,0]
[null,null,null,null,null,null,null,0]
[null,null,null,null,null,null,null,0]
[null,null,null,null,null,null,null,0]
[null,null,null,null,null,null,null,0]
[null,null,null,null,null,null,null,0]
[null,null,null,null,null,null,null,0]
[null,null,null,null,null,null,null,0]
[null,null,null,null,null,null,null,0]
[null,null,null,null,null,null,null,0]
[null,null,null,null,null,null,null,0]
[null,null,null,null,null,null,null,0]
[null,null,null,null,null,null,null,0]
[null,null,null,null,null,null,null,0]
[null,null,null,null,null,null,null,0]
[null,null,null,null,null,null,null,0]
[null,null,null,null,null,null,null,0]
[null,null,null,null,null,null,null,0]
[null,null,null,null,null,null,null,0]
[null,null,null,null,null,null,null,0]
[null,null,null,null,null,null,null,0]
[null,null,null,null,null,null,null,0]
[null,null,null,null,null,null,null,0]
[null,null,null,null,null,null,null,0]
[null,null,null,null,null,null,null,0]
[null,null,null,null,null,null,null,0]
[null,null,null,null,null,null,null,0]
[null,null,null,null,null,null,null,0]
[null,null,null,null,null,null,null,0]
[null,null,null,null,null,null,null,0]
[null,null,null,null,null,null,null,0]
[null,null,null,null,null,null,null,0]
[null,null,null,null,null,null,null,0]
[null,null,null,null,null,null,null,0]
[null,null,null,null,null,null,null,0]
[null,null,null,null,null,null,null,0]
[null,null,null,null,null,"TOTAL",null,{"$f":"SUM(H12:H56)","v":0}]
[]
["ELABORÓ",null,null,"VO.BO. SUFICIENCIA",null,null,"REVISIÓN"]
[null,null,null,"PRESUPUESTAL"]
[]
[]
["NOMBRE Y FIRMA",null,null,"Act. Jorge Aldana Jamaica",null,null,"Lic. Luis Manuel González Coronado"]
[null,null,null,"RESPONSABLE DE PRESUPUESTO",null,null,"RESPONSABLE DE BIENES Y SUMINISTROS"]